[Event "FWCT 2019"]
[Site "Kazan"]
[Date "2019.06.04"]
[Round "4.3"]
[White "Muzychuk, Anna"]
[Black "Goryachkina, Aleksandra"]
[Result "1/2-1/2"]
[ECO "C54"]
[WhiteElo "2539"]
[BlackElo "2522"]
[Annotator "RC"]
[PlyCount "73"]
[EventDate "2019.05.11"]
[EventType "tourn"]
[EventCountry "RUS"]
[SourceTitle "playchess.com"]
[Source "ChessBase"]
[SourceQuality "1"]
[TimeControl "40/5400+30:1800+30"]

1. e4 {[%emt 0:00:00]} e5 {[%emt 0:00:00]} 2. Nf3 {[%emt 0:00:00]} Nc6 {[%emt 0:00:00]} 3. Bc4 {[%emt 0:00:15]} Bc5 {[%emt 0:00:51]} 4. c3 {[%emt 0:00:55]} Nf6 {[%emt 0:01:02]} 5. d3 {[%emt 0:00:15]} d6 {[%emt 0:00:59]} 6. O-O {[%emt 0:00:37]} Bb6 {[%emt 0:02:22]} 7. a4 {[%emt 0:04:52]} a5 {[%emt 0:01:11]} 8. Nbd2 {[%emt 0:02:03]} Ne7 {[%emt 0:01:53]} 9. Bb3 {[%emt 0:03:10]} c6 {[%emt 0:05:02]} 10. d4 {[%emt 0:05:46]} Ng6 {[%emt 0:10:55]} 11. dxe5 {[%emt 0:09:30]} dxe5 {[%emt 0:03:13]} 12. Nc4 {[%emt 0:05:51]} Qxd1 {[%emt 0:03:01]} 13. Rxd1 {[%emt 0:00:29]} Bc7 {[%emt 0:00:25]} 14. Be3 {[%emt 0:14:12]} Bg4 {[%emt 0:10:27]} 15. h3 {[%emt 0:07:54]} Bxf3 {[%emt 0:04:38]} 16. gxf3 {[%emt 0:00:01]} O-O {[%emt 0:00:54]} 17. Nd6 {[%emt 0:13:05]} Nh4 {[%emt 0:06:46]} 18. Nxb7 {[%emt 0:07:53]} Nxf3+ {[%emt 0:01:27]} 19. Kg2 {[%emt 0:00:14]} Nh4+ {[%emt 0:01:48]} 20. Kg3 {[%emt 0:00:23]} Rfb8 {[%emt 0:01:45]} 21. Nc5 {[%emt 0:02:38]} Nxe4+ {[%emt 0:04:21]} 22. Kxh4 {[%emt 0:02:35]} Nxc5 {[%emt 0:01:12]} 23. Bxf7+ {[%emt 0:00:04]} Kxf7 {[%emt 0:00:07]} 24. Bxc5 {[%emt 0:00:02]} Bd8+ {[%emt 0:02:00]} 25. Kg4 {[%emt 0:02:26]} Rxb2 {[%emt 0:01:45]} 26. Rd7+ {[%emt 0:00:29]} Kg8 {[%emt 0:03:07]} 27. Re1 {[%emt 0:04:37]} Bf6 {[%emt 0:03:24]} 28. Re4 {[%emt 0:00:45]} Rc2 {[%emt 0:04:44]} 29. Rc4 {[%emt 0:00:27]} e4 {[%emt 0:08:54]} 30. Rc7 {[%emt 0:02:03]} Rxc3 {[%emt 0:02:52]} 31. Rxc3 {[%emt 0:00:05]} Bxc3 {[%emt 0:00:05]} 32. Rxc6 {[%emt 0:00:07]} Re8 {[%emt 0:00:46]} 33. Be3 {[%emt 0:02:34]} Bb4 {[%emt 0:01:42]} 34. Rc7 {[%emt 0:00:59]} Rb8 {[%emt 0:06:55]} 35. Rc4 {[%emt 0:01:15]} Re8 {[%emt 0:00:09]} 36. Rc7 {[%emt 0:00:11]} Rb8 {[%emt 0:00:07]} 37. Rc4 {[%emt 0:00:09]} 1/2-1/2

[Event "FWCT 2019"]
[Site "Kazan"]
[Date "2019.06.05"]
[Round "5.2"]
[White "Kosteniuk, Alexandra"]
[Black "Dzagnidze, Nana"]
[Result "1-0"]
[ECO "B22"]
[WhiteElo "2546"]
[BlackElo "2510"]
[Annotator "RC"]
[PlyCount "83"]
[EventDate "2019.05.11"]
[EventType "tourn"]
[EventCountry "RUS"]
[SourceTitle "playchess.com"]
[Source "ChessBase"]
[SourceQuality "1"]
[TimeControl "40/5400+30:1800+30"]

1. e4 {[%emt 0:00:00]} c5 {[%emt 0:00:00]} 2. c3 {[%emt 0:00:00]} d5 {[%emt 0:00:00]} 3. exd5 {[%emt 0:00:00]} Qxd5 {[%emt 0:00:00]} 4. d4 {[%emt 0:00:00]} Nf6 {[%emt 0:00:05]} 5. Nf3 {[%emt 0:00:00]} Bg4 {[%emt 0:00:31]} 6. Be2 {[%emt 0:00:18]} e6 {[%emt 0:00:15]} 7. h3 {[%emt 0:00:10]} Bh5 {[%emt 0:01:08]} 8. c4 {[%emt 0:00:15]} Qd7 {[%emt 0:08:05]} 9. d5 {[%emt 0:00:31]} exd5 {[%emt 0:00:41]} 10. cxd5 {[%emt 0:00:04]} Bd6 {[%emt 0:21:40]} 11. Nh4 {[%emt 0:01:15]} Bg6 {[%emt 0:03:30]} 12. Nxg6 {[%emt 0:00:51]} hxg6 {[%emt 0:00:08]} 13. Nc3 {[%emt 0:01:44]} a6 {[%emt 0:01:16]} 14. O-O {[%emt 0:17:19]} Kf8 {[%emt 0:03:48]} 15. f4 {[%emt 0:04:52]} Qc7 {[%emt 0:09:50]} 16. f5 {[%emt 0:11:44]} gxf5 {[%emt 0:00:45]} 17. Rxf5 {[%emt 0:00:03]} Nbd7 {[%emt 0:00:11]} 18. Qf1 {[%emt 0:01:57]} Re8 {[%emt 0:01:00]} 19. Bg5 {[%emt 0:00:32]} Be5 {[%emt 0:05:56]} 20. Rd1 {[%emt 0:22:35]} Qd6 {[%emt 0:02:09]} 21. Kh1 {[%emt 0:00:52]} b5 {[%emt 0:03:19]} 22. Bd3 {[%emt 0:06:21]} Kg8 {[%emt 0:02:51]} 23. Re1 {[%emt 0:04:52]} c4 {[%emt 0:12:41]} 24. Bc2 {[%emt 0:01:41]} Qb8 {[%emt 0:02:17]} 25. Qf3 {[%emt 0:04:15]} Bd6 {[%emt 0:03:23]} 26. Qd1 {[%emt 0:08:34]} Rxe1+ {[%emt 0:09:29]} 27. Qxe1 {[%emt 0:00:03]} Qe8 {[%emt 0:00:35]} 28. Qxe8+ {[%emt 0:03:24]} Nxe8 {[%emt 0:00:01]} 29. Ne4 {[%emt 0:00:26]} f6 {[%emt 0:01:11]} 30. Be3 {[%emt 0:00:18]} Be5 {[%emt 0:01:27]} 31. b3 {[%emt 0:01:02]} Nc7 {[%emt 0:02:03]} 32. bxc4 {[%emt 0:03:02]} bxc4 {[%emt 0:00:02]} 33. d6 {[%emt 0:01:15]} Nb5 {[%emt 0:00:39]} 34. a4 {[%emt 0:00:55]} Na3 {[%emt 0:03:47]} 35. Bd1 {[%emt 0:00:04]} Kf7 {[%emt 0:00:11]} 36. Bc1 {[%emt 0:01:42]} Rh4 {[%emt 0:00:15]} 37. Ng5+ {[%emt 0:01:18]} Kg6 {[%emt 0:00:06]} 38. Nf3 {[%emt 0:00:38]} Re4 {[%emt 0:02:47]} 39. g4 {[%emt 0:03:01]} Nb1 {[%emt 0:00:52]} 40. Bc2 {[%emt 0:00:00]} Nc3 {[%emt 0:00:00]} 41. Nxe5+ {[%emt 0:01:44]} fxe5 {[%emt 0:00:38]} 42. Rf3 {[%emt 0:00:26]} 1-0

[Event "FWCT 2019"]
[Site "Kazan"]
[Date "2019.06.06"]
[Round "6.4"]
[White "Tan, Zhongyi"]
[Black "Lagno, Kateryna"]
[Result "0-1"]
[ECO "D20"]
[WhiteElo "2513"]
[BlackElo "2554"]
[Annotator "RC"]
[PlyCount "144"]
[EventDate "2019.05.11"]
[EventType "tourn"]
[EventCountry "RUS"]
[SourceTitle "playchess.com"]
[Source "ChessBase"]
[SourceQuality "1"]
[TimeControl "40/5400+30:1800+30"]

1. d4 {[%emt 0:00:00]} d5 {[%emt 0:00:00]} 2. c4 {[%emt 0:00:01]} dxc4 {[%emt 0:00:00]} 3. e4 {[%emt 0:00:31]} Nc6 {[%emt 0:00:16]} 4. d5 {[%emt 0:11:15]} Ne5 {[%emt 0:01:32]} 5. Nf3 {[%emt 0:00:07]} Nxf3+ {[%emt 0:00:58]} 6. Qxf3 {[%emt 0:00:21]} e6 {[%emt 0:00:19]} 7. Bxc4 {[%emt 0:00:35]} exd5 {[%emt 0:00:52]} 8. exd5 {[%emt 0:03:29]} Bd6 {[%emt 0:00:25]} 9. O-O {[%emt 0:07:04]} Qh4 {[%emt 0:01:17]} 10. Qe2+ {[%emt 0:00:30]} Ne7 {[%emt 0:01:55]} 11. g3 {[%emt 0:00:19]} Qh3 {[%emt 0:06:41]} 12. Nc3 {[%emt 0:01:38]} O-O {[%emt 0:03:13]} 13. Ne4 {[%emt 0:01:39]} Ng6 {[%emt 0:02:48]} 14. f4 {[%emt 0:10:05]} Bg4 {[%emt 0:10:47]} 15. Qf2 {[%emt 0:00:11]} Rfe8 {[%emt 0:11:38]} 16. Re1 {[%emt 0:01:44]} h6 {[%emt 0:28:27]} 17. Bd2 {[%emt 0:00:49]} Bf8 {[%emt 0:01:24]} 18. Re3 {[%emt 0:06:09]} Bd7 {[%emt 0:08:47]} 19. Rae1 {[%emt 0:01:21]} Qf5 {[%emt 0:00:30]} 20. Qf3 {[%emt 0:01:06]} Kh8 {[%emt 0:03:20]} 21. b4 {[%emt 0:00:23]} b6 {[%emt 0:01:04]} 22. Bc3 {[%emt 0:08:04]} a5 {[%emt 0:01:22]} 23. Nf2 {[%emt 0:02:11]} Qc2 {[%emt 0:07:54]} 24. R3e2 {[%emt 0:06:57]} Rxe2 {[%emt 0:00:55]} 25. Rxe2 {[%emt 0:00:07]} Qc1+ {[%emt 0:00:13]} 26. Re1 {[%emt 0:00:30]} Qc2 {[%emt 0:00:04]} 27. Bb3 {[%emt 0:07:09]} Qf5 {[%emt 0:00:06]} 28. Re4 {[%emt 0:11:42]} axb4 {[%emt 0:02:32]} 29. g4 {[%emt 0:01:55]} Nh4 {[%emt 0:00:14]} 30. Qg3 {[%emt 0:00:29]} Qg6 {[%emt 0:02:25]} 31. Bd4 {[%emt 0:04:53]} Bxg4 {[%emt 0:00:10]} 32. f5 {[%emt 0:03:27]} Nf3+ {[%emt 0:00:18]} 33. Qxf3 {[%emt 0:02:07]} Bxf5+ {[%emt 0:00:13]} 34. Rg4 {[%emt 0:00:24]} Bxg4 {[%emt 0:00:07]} 35. Qxg4 {[%emt 0:00:03]} Qxg4+ {[%emt 0:00:15]} 36. Nxg4 {[%emt 0:00:04]} f6 {[%emt 0:01:53]} 37. Kg2 {[%emt 0:00:39]} Re8 {[%emt 0:00:24]} 38. Kf3 {[%emt 0:00:41]} Bd6 {[%emt 0:00:36]} 39. h3 {[%emt 0:00:07]} Re1 {[%emt 0:01:12]} 40. Nf2 {[%emt 0:00:00]} Re7 {[%emt 0:00:00]} 41. Ne4 {[%emt 0:00:27]} Be5 {[%emt 0:02:56]} 42. Be3 {[%emt 0:01:33]} f5 {[%emt 0:04:10]} 43. Nf2 {[%emt 0:00:04]} g5 {[%emt 0:05:14]} 44. Nd3 {[%emt 0:02:55]} Bc3 {[%emt 0:01:20]} 45. h4 {[%emt 0:00:55]} g4+ {[%emt 0:05:40]} 46. Kf2 {[%emt 0:00:05]} Bf6 {[%emt 0:04:25]} 47. Bxh6 {[%emt 0:00:59]} Bxh4+ {[%emt 0:00:08]} 48. Kf1 {[%emt 0:00:07]} Bg3 {[%emt 0:03:39]} 49. Bd2 {[%emt 0:01:21]} Bd6 {[%emt 0:01:48]} 50. Nf4 {[%emt 0:01:01]} Re4 {[%emt 0:00:57]} 51. Ne6 {[%emt 0:12:31]} g3 {[%emt 0:01:10]} 52. Bd1 {[%emt 0:00:37]} Rh4 {[%emt 0:01:54]} 53. Bf3 {[%emt 0:00:11]} Rc4 {[%emt 0:00:47]} 54. Bd1 {[%emt 0:00:06]} Rh4 {[%emt 0:02:33]} 55. Bf3 {[%emt 0:00:05]} Rc4 {[%emt 0:02:11]} 56. Bd1 {[%emt 0:00:05]} Kh7 {[%emt 0:00:59]} 57. Ng5+ {[%emt 0:00:40]} Kg6 {[%emt 0:00:09]} 58. Nf3 {[%emt 0:00:04]} Re4 {[%emt 0:00:38]} 59. Bc2 {[%emt 0:00:38]} Re8 {[%emt 0:00:12]} 60. Bd3 {[%emt 0:02:33]} Ra8 {[%emt 0:00:16]} 61. Bc4 {[%emt 0:00:57]} f4 {[%emt 0:00:08]} 62. Kg2 {[%emt 0:00:31]} Kf5 {[%emt 0:00:28]} 63. Bb3 {[%emt 0:00:47]} Ke4 {[%emt 0:00:31]} 64. Bc1 {[%emt 0:01:39]} Kd3 {[%emt 0:00:21]} 65. Ne1+ {[%emt 0:00:33]} Kc3 {[%emt 0:00:13]} 66. Kf3 {[%emt 0:00:32]} b5 {[%emt 0:01:49]} 67. Ng2 {[%emt 0:00:18]} Rxa2 {[%emt 0:00:46]} 68. Bxa2 {[%emt 0:00:06]} Kc2 {[%emt 0:00:04]} 69. Bxf4 {[%emt 0:09:15]} Kb2 {[%emt 0:00:02]} 70. Bc1+ {[%emt 0:02:53]} Kxa2 {[%emt 0:00:20]} 71. Nf4 {[%emt 0:00:20]} Bxf4 {[%emt 0:01:06]} 72. Bxf4 {[%emt 0:00:28]} b3 {[%emt 0:00:04]} 0-1

[Event "FWCT 2019"]
[Site "Kazan"]
[Date "2019.06.08"]
[Round "7.1"]
[White "Kosteniuk, Alexandra"]
[Black "Muzychuk, Anna"]
[Result "1/2-1/2"]
[ECO "C81"]
[WhiteElo "2546"]
[BlackElo "2539"]
[Annotator "ChessBase"]
[PlyCount "82"]
[EventDate "2019.05.11"]
[EventType "tourn"]
[EventCountry "RUS"]
[SourceTitle "playchess.com"]
[Source "ChessBase"]
[SourceQuality "1"]
[TimeControl "40/5400+30:1800+30"]

1. e4 {[%emt 0:00:00]} e5 {[%emt 0:00:00]} 2. Nf3 {[%emt 0:00:00]} Nc6 {[%emt 0:00:00]} 3. Bb5 {[%emt 0:00:00]} a6 {[%emt 0:00:00]} 4. Ba4 {[%emt 0:00:00]} Nf6 {[%emt 0:00:00]} 5. O-O {[%emt 0:00:00]} Nxe4 {[%emt 0:00:12]} 6. d4 {[%emt 0:00:12]} b5 {[%emt 0:00:09]} 7. Bb3 {[%emt 0:00:06]} d5 {[%emt 0:00:09]} 8. dxe5 {[%emt 0:00:06]} Be6 {[%emt 0:00:10]} 9. Qe2 {[%emt 0:00:18]} Be7 {[%emt 0:01:02]} 10. Rd1 {[%emt 0:00:27]} O-O {[%emt 0:00:36]} 11. c4 {[%emt 0:00:48]} bxc4 {[%emt 0:00:12]} 12. Bxc4 {[%emt 0:00:05]} Bc5 {[%emt 0:00:43]} 13. Be3 {[%emt 0:00:29]} Bxe3 {[%emt 0:00:31]} 14. Qxe3 {[%emt 0:00:05]} Qb8 {[%emt 0:00:20]} 15. Bb3 {[%emt 0:00:43]} Na5 {[%emt 0:00:53]} 16. Nd4 {[%emt 0:00:52]} c5 {[%emt 0:00:52]} 17. Nxe6 {[%emt 0:00:29]} fxe6 {[%emt 0:00:02]} 18. f3 {[%emt 0:00:37]} c4 {[%emt 0:00:21]} 19. Ba4 {[%emt 0:00:15]} Qxb2 {[%emt 0:27:48]} 20. fxe4 {[%emt 0:00:35]} Qxa1 {[%emt 0:01:08]} 21. exd5 {[%emt 0:00:18]} Rad8 {[%emt 0:16:00]} 22. Nc3 {[%emt 0:00:59]} Qb2 {[%emt 0:00:07]} 23. d6 {[%emt 0:00:16]} Qa3 {[%emt 0:16:39]} 24. Qd4 {[%emt 0:24:57]} Kh8 {[%emt 0:06:02]} 25. h3 {[%emt 0:13:23]} Nb7 {[%emt 0:04:58]} 26. Kh2 {[%emt 0:04:18]} Qc5 {[%emt 0:04:38]} 27. Qe4 {[%emt 0:00:43]} Rf5 {[%emt 0:04:47]} 28. Nd5 {[%emt 0:11:16]} Nxd6 {[%emt 0:08:19]} 29. Ne7 {[%emt 0:01:26]} Qc7 {[%emt 0:03:57]} 30. Qh4 {[%emt 0:11:18]} Nf7 {[%emt 0:00:44]} 31. Ng6+ {[%emt 0:04:11]} Kg8 {[%emt 0:00:05]} 32. Ne7+ {[%emt 0:01:23]} Kh8 {[%emt 0:00:10]} 33. Ng6+ {[%emt 0:00:10]} Kg8 {[%emt 0:00:04]} 34. Ne7+ {[%emt 0:00:05]} Kf8 {[%emt 0:01:44]} 35. Rxd8+ {[%emt 0:00:14]} Nxd8 {[%emt 0:00:22]} 36. Ng6+ {[%emt 0:07:39]} Kg8 {[%emt 0:00:15]} 37. Ne7+ {[%emt 0:00:03]} Kf8 {[%emt 0:00:26]} 38. Ng6+ {[%emt 0:00:06]} Kg8 {[%emt 0:02:11]} 39. Ne7+ {[%emt 0:00:07]} Kf7 {[%emt 0:01:55]} 40. Nxf5 {[%emt 0:00:00]} exf5 {[%emt 0:00:00]} 41. Kh1 {[%emt 0:06:29]} Qxe5 {[%emt 0:21:44]} 1/2-1/2

[Event "FWCT 2019"]
[Site "Kazan"]
[Date "2019.06.08"]
[Round "7.2"]
[White "Goryachkina, Aleksandra"]
[Black "Muzychuk, Mariya"]
[Result "1/2-1/2"]
[ECO "A04"]
[WhiteElo "2522"]
[BlackElo "2563"]
[Annotator "ChessBase"]
[PlyCount "135"]
[EventDate "2019.05.11"]
[EventType "tourn"]
[EventCountry "RUS"]
[SourceTitle "playchess.com"]
[Source "ChessBase"]
[SourceQuality "1"]
[TimeControl "40/5400+30:1800+30"]

1. Nf3 {[%emt 0:00:00]} c5 {[%emt 0:00:00]} 2. c4 {[%emt 0:00:00]} Nc6 {[%emt 0:00:07]} 3. Nc3 {[%emt 0:00:13]} g6 {[%emt 0:00:17]} 4. e3 {[%emt 0:00:37]} Nf6 {[%emt 0:00:07]} 5. d4 {[%emt 0:00:10]} cxd4 {[%emt 0:00:04]} 6. exd4 {[%emt 0:00:09]} d5 {[%emt 0:00:02]} 7. cxd5 {[%emt 0:00:59]} Nxd5 {[%emt 0:00:03]} 8. Qb3 {[%emt 0:00:42]} e6 {[%emt 0:00:47]} 9. Bb5 {[%emt 0:01:52]} Bg7 {[%emt 0:00:16]} 10. O-O {[%emt 0:00:42]} O-O {[%emt 0:00:08]} 11. Bxc6 {[%emt 0:00:12]} bxc6 {[%emt 0:00:03]} 12. Na4 {[%emt 0:00:39]} Qd6 {[%emt 0:00:27]} 13. Re1 {[%emt 0:00:29]} Rb8 {[%emt 0:02:22]} 14. Qd1 {[%emt 0:00:51]} Ne7 {[%emt 0:10:42]} 15. b3 {[%emt 0:00:45]} Nf5 {[%emt 0:06:09]} 16. Bb2 {[%emt 0:00:25]} Rd8 {[%emt 0:02:16]} 17. Rc1 {[%emt 0:00:30]} Nxd4 {[%emt 0:17:44]} 18. Nxd4 {[%emt 0:00:15]} Bxd4 {[%emt 0:00:04]} 19. Bxd4 {[%emt 0:00:10]} Qxd4 {[%emt 0:00:04]} 20. Qf3 {[%emt 0:00:10]} Rd5 {[%emt 0:13:44]} 21. Nc3 {[%emt 0:29:20]} Rf5 {[%emt 0:03:11]} 22. Red1 {[%emt 0:03:11]} Qh4 {[%emt 0:08:08]} 23. Qg3 {[%emt 0:03:48]} Qxg3 {[%emt 0:02:11]} 24. Rd8+ {[%emt 0:00:53]} Kg7 {[%emt 0:00:03]} 25. hxg3 {[%emt 0:02:52]} Rc5 {[%emt 0:01:31]} 26. f4 {[%emt 0:09:16]} Ra8 {[%emt 0:07:51]} 27. Ne2 {[%emt 0:01:23]} Rxc1+ {[%emt 0:03:59]} 28. Nxc1 {[%emt 0:00:09]} Bb7 {[%emt 0:04:33]} 29. Rd7 {[%emt 0:05:22]} Ba6 {[%emt 0:00:33]} 30. Kf2 {[%emt 0:04:30]} h5 {[%emt 0:03:31]} 31. a3 {[%emt 0:10:34]} c5 {[%emt 0:04:37]} 32. Ke3 {[%emt 0:10:17]} c4 {[%emt 0:01:36]} 33. b4 {[%emt 0:01:06]} Bb5 {[%emt 0:00:12]} 34. Rb7 {[%emt 0:00:54]} Bc6 {[%emt 0:02:51]} 35. Rc7 {[%emt 0:00:23]} Bxg2 {[%emt 0:00:40]} 36. Rxc4 {[%emt 0:00:17]} Bf1 {[%emt 0:01:00]} 37. Rc7 {[%emt 0:01:39]} a5 {[%emt 0:03:21]} 38. Kf2 {[%emt 0:00:47]} axb4 {[%emt 0:00:29]} 39. axb4 {[%emt 0:08:12]} Bb5 {[%emt 0:00:13]} 40. Rb7 {[%emt 0:00:00]} Bc4 {[%emt 0:00:00]} 41. Rc7 {[%emt 0:01:53]} Bb5 {[%emt 0:08:17]} 42. Rb7 {[%emt 0:07:59]} Ra1 {[%emt 0:01:21]} 43. Rxb5 {[%emt 0:02:00]} Rxc1 {[%emt 0:00:05]} 44. Rb7 {[%emt 0:00:35]} Rc2+ {[%emt 0:00:14]} 45. Kf3 {[%emt 0:00:21]} Rc3+ {[%emt 0:00:03]} 46. Kg2 {[%emt 0:01:38]} Kf6 {[%emt 0:00:21]} 47. b5 {[%emt 0:02:26]} Rc5 {[%emt 0:01:31]} 48. b6 {[%emt 0:00:51]} e5 {[%emt 0:03:21]} 49. Rc7 {[%emt 0:03:59]} Rb5 {[%emt 0:00:22]} 50. fxe5+ {[%emt 0:00:16]} Rxe5 {[%emt 0:00:38]} 51. b7 {[%emt 0:00:30]} Rb5 {[%emt 0:00:36]} 52. Kf3 {[%emt 0:00:45]} Rb4 {[%emt 0:03:36]} 53. Ke3 {[%emt 0:00:25]} g5 {[%emt 0:01:01]} 54. Kd3 {[%emt 0:01:02]} Kg6 {[%emt 0:00:53]} 55. Kc3 {[%emt 0:01:45]} Rb1 {[%emt 0:00:09]} 56. Kd4 {[%emt 0:01:09]} f6 {[%emt 0:11:54]} 57. Kd5 {[%emt 0:02:04]} Kf5 {[%emt 0:03:51]} 58. Kc6 {[%emt 0:00:32]} Kg4 {[%emt 0:00:22]} 59. Rh7 {[%emt 0:00:55]} f5 {[%emt 0:00:40]} 60. Rh8 {[%emt 0:00:39]} Kxg3 {[%emt 0:00:46]} 61. Rxh5 {[%emt 0:00:32]} Kf4 {[%emt 0:00:18]} 62. Rh1 {[%emt 0:02:09]} Rxb7 {[%emt 0:01:45]} 63. Kxb7 {[%emt 0:03:23]} g4 {[%emt 0:00:17]} 64. Rf1+ {[%emt 0:00:51]} Ke4 {[%emt 0:01:17]} 65. Re1+ {[%emt 0:00:15]} Kf3 {[%emt 0:00:39]} 66. Rf1+ {[%emt 0:00:09]} Ke4 {[%emt 0:00:13]} 67. Re1+ {[%emt 0:00:12]} Kf3 {[%emt 0:00:18]} 68. Rf1+ {[%emt 0:00:07]} 1/2-1/2

[Event "FWCT 2019"]
[Site "Kazan"]
[Date "2019.06.08"]
[Round "7.3"]
[White "Lagno, Kateryna"]
[Black "Dzagnidze, Nana"]
[Result "1/2-1/2"]
[ECO "B30"]
[WhiteElo "2554"]
[BlackElo "2510"]
[Annotator "ChessBase"]
[PlyCount "160"]
[EventDate "2019.05.11"]
[EventType "tourn"]
[EventCountry "RUS"]
[SourceTitle "playchess.com"]
[Source "ChessBase"]
[SourceQuality "1"]
[TimeControl "40/5400+30:1800+30"]

1. e4 {[%emt 0:00:00]} c5 {[%emt 0:00:00]} 2. Nf3 {[%emt 0:00:00]} Nc6 {[%emt 0:00:00]} 3. c3 {[%emt 0:00:00]} Nf6 {[%emt 0:00:10]} 4. e5 {[%emt 0:00:04]} Nd5 {[%emt 0:00:05]} 5. Bc4 {[%emt 0:00:08]} Nb6 {[%emt 0:00:36]} 6. Bb3 {[%emt 0:00:18]} d5 {[%emt 0:02:06]} 7. exd6 {[%emt 0:00:44]} Qxd6 {[%emt 0:00:07]} 8. O-O {[%emt 0:06:40]} Be6 {[%emt 0:00:26]} 9. Bxe6 {[%emt 0:07:52]} Qxe6 {[%emt 0:00:05]} 10. a4 {[%emt 0:17:18]} Rd8 {[%emt 0:12:22]} 11. a5 {[%emt 0:02:08]} Nc8 {[%emt 0:00:28]} 12. a6 {[%emt 0:07:12]} b6 {[%emt 0:09:22]} 13. d4 {[%emt 0:07:02]} Qd7 {[%emt 0:25:59]} 14. Qa4 {[%emt 0:01:46]} cxd4 {[%emt 0:00:59]} 15. cxd4 {[%emt 0:00:32]} e6 {[%emt 0:01:29]} 16. Nc3 {[%emt 0:02:36]} Bb4 {[%emt 0:05:55]} 17. Bg5 {[%emt 0:06:50]} f6 {[%emt 0:00:51]} 18. Bf4 {[%emt 0:03:47]} Bxc3 {[%emt 0:00:35]} 19. bxc3 {[%emt 0:00:05]} O-O {[%emt 0:01:50]} 20. Rfe1 {[%emt 0:00:15]} N8e7 {[%emt 0:03:08]} 21. Rad1 {[%emt 0:17:30]} Nd5 {[%emt 0:06:05]} 22. Bd2 {[%emt 0:00:10]} Na5 {[%emt 0:00:56]} 23. Qxd7 {[%emt 0:00:23]} Rxd7 {[%emt 0:00:05]} 24. Rxe6 {[%emt 0:00:08]} Rc8 {[%emt 0:00:13]} 25. h4 {[%emt 0:08:42]} Kf7 {[%emt 0:04:16]} 26. Re2 {[%emt 0:00:34]} Rc4 {[%emt 0:09:18]} 27. Rde1 {[%emt 0:01:18]} Rd8 {[%emt 0:01:19]} 28. h5 {[%emt 0:04:41]} Ra4 {[%emt 0:07:32]} 29. h6 {[%emt 0:00:21]} gxh6 {[%emt 0:00:02]} 30. Bxh6 {[%emt 0:01:43]} Nc4 {[%emt 0:00:20]} 31. Re4 {[%emt 0:03:01]} b5 {[%emt 0:02:01]} 32. Rg4 {[%emt 0:00:28]} Rg8 {[%emt 0:00:52]} 33. Rxg8 {[%emt 0:00:04]} Kxg8 {[%emt 0:00:03]} 34. Re8+ {[%emt 0:00:39]} Kf7 {[%emt 0:00:05]} 35. Rd8 {[%emt 0:00:08]} Nxc3 {[%emt 0:00:23]} 36. Rd7+ {[%emt 0:00:24]} Ke6 {[%emt 0:00:10]} 37. Rxa7 {[%emt 0:00:12]} b4 {[%emt 0:01:46]} 38. Rb7 {[%emt 0:00:14]} Nd6 {[%emt 0:00:39]} 39. Rb8 {[%emt 0:00:32]} Ndb5 {[%emt 0:01:25]} 40. Rb6+ {[%emt 0:00:00]} Kd5 {[%emt 0:00:00]} 41. Nd2 {[%emt 0:07:25]} f5 {[%emt 0:06:48]} 42. Bf8 {[%emt 0:04:40]} Kxd4 {[%emt 0:08:41]} 43. a7 {[%emt 0:01:46]} Kd3 {[%emt 0:02:53]} 44. Bxb4 {[%emt 0:06:33]} Rxa7 {[%emt 0:06:24]} 45. Nf3 {[%emt 0:02:23]} Ra2 {[%emt 0:05:08]} 46. Bxc3 {[%emt 0:01:56]} Nxc3 {[%emt 0:00:06]} 47. Rd6+ {[%emt 0:00:09]} Ke2 {[%emt 0:01:27]} 48. Nd4+ {[%emt 0:03:32]} Ke1 {[%emt 0:00:04]} 49. Re6+ {[%emt 0:04:53]} Ne2+ {[%emt 0:03:12]} 50. Nxe2 {[%emt 0:00:15]} Rxe2 {[%emt 0:00:02]} 51. Ra6 {[%emt 0:00:24]} Re5 {[%emt 0:04:18]} 52. Ra2 {[%emt 0:01:05]} h5 {[%emt 0:00:33]} 53. f3 {[%emt 0:00:21]} f4 {[%emt 0:01:38]} 54. Ra4 {[%emt 0:01:00]} Rf5 {[%emt 0:00:49]} 55. Re4+ {[%emt 0:00:05]} Kd2 {[%emt 0:00:05]} 56. Kh2 {[%emt 0:00:05]} Kd3 {[%emt 0:01:06]} 57. Kh3 {[%emt 0:00:04]} Rf8 {[%emt 0:00:31]} 58. Re5 {[%emt 0:02:03]} Rg8 {[%emt 0:00:04]} 59. Kh2 {[%emt 0:01:51]} Rg7 {[%emt 0:00:59]} 60. Rxh5 {[%emt 0:00:48]} Ke3 {[%emt 0:00:30]} 61. Kg1 {[%emt 0:00:26]} Re7 {[%emt 0:00:03]} 62. Ra5 {[%emt 0:00:34]} Re8 {[%emt 0:00:42]} 63. Ra4 {[%emt 0:00:08]} Re7 {[%emt 0:00:15]} 64. Kf1 {[%emt 0:00:10]} Re8 {[%emt 0:00:18]} 65. Ra2 {[%emt 0:00:32]} Rf8 {[%emt 0:00:22]} 66. Re2+ {[%emt 0:00:21]} Kd4 {[%emt 0:00:13]} 67. Re4+ {[%emt 0:00:10]} Kd5 {[%emt 0:00:10]} 68. Kf2 {[%emt 0:00:33]} Rf7 {[%emt 0:00:39]} 69. Re8 {[%emt 0:00:11]} Rg7 {[%emt 0:00:21]} 70. Re4 {[%emt 0:00:34]} Rf7 {[%emt 0:00:02]} 71. g3 {[%emt 0:00:29]} fxg3+ {[%emt 0:00:04]} 72. Kxg3 {[%emt 0:00:02]} Rg7+ {[%emt 0:02:01]} 73. Kf4 {[%emt 0:02:16]} Rf7+ {[%emt 0:00:12]} 74. Kg4 {[%emt 0:00:46]} Rg7+ {[%emt 0:00:05]} 75. Kh5 {[%emt 0:00:59]} Rf7 {[%emt 0:00:18]} 76. Kg4 {[%emt 0:00:16]} Rg7+ {[%emt 0:00:47]} 77. Kf4 {[%emt 0:00:15]} Rf7+ {[%emt 0:00:09]} 78. Ke3 {[%emt 0:00:02]} Kd6 {[%emt 0:00:55]} 79. Re8 {[%emt 0:01:29]} Re7+ {[%emt 0:00:42]} 80. Rxe7 {[%emt 0:00:04]} Kxe7 {[%emt 0:00:04]} 1/2-1/2